bitfinex-derivatives/quotes_BNBF0:USTF0_20250908
["timestamp","ask_amount","ask_price","bid_price","bid_amount"]
[1757364468367,0.61373063,875.07,874.77,0.19840987]
[1757364468567,0.61373063,875.06,874.77,0.19840987]
[1757364468768,1.53139727,875.47,874.77,0.19840987]
[1757364468965,2.14521517,875.46,874.77,0.19840987]
[1757364469168,0.6138179,875.45,874.77,0.19840987]
[1757364469370,0.6138179,875.44,874.77,0.19840987]
[1757364469569,0.6138179,875.43,874.77,0.19840987]
[1757364469869,0.6138179,875.42,874.77,0.19840987]
[1757364470169,0.6138179,875.41,874.77,0.19840987]
[1757364470370,0.6138179,875.4,874.77,0.19840987]
[1757364470670,0.6138179,875.39,874.77,0.19840987]
[1757364470970,0.6138179,875.38,874.77,0.19840987]
[1757364471172,0.6138179,875.37,874.77,0.19840987]
[1757364471371,0.6138179,875.36,874.77,0.19840987]
[1757364471670,0.6138179,875.35,874.77,0.19840987]
[1757364471865,0.6138179,875.34,874.77,0.19840987]
[1757364472067,0.6138179,875.33,874.77,0.19840987]
[1757364472366,0.6138179,875.32,874.77,0.19840987]
[1757364472670,0.6138179,875.31,874.77,0.19840987]
[1757364472870,0.6138179,875.3,874.77,0.19840987]
[1757364473069,0.6138179,875.29,874.77,0.19840987]
[1757364473267,0.6138179,875.28,874.77,0.19840987]
[1757364473466,0.6138179,875.27,874.77,0.19840987]
[1757364473665,0.6138179,875.26,874.77,0.19840987]
[1757364473869,1.53139727,875.44,874.77,0.19840987]
[1757364473870,0.6138179,875.25,874.77,0.19840987]
[1757364474070,0.6138179,875.24,874.77,0.19840987]
[1757364474270,0.6138179,875.23,874.77,0.19840987]
[1757364474472,0.6138179,875.22,874.77,0.19840987]
[1757364474771,0.6138179,875.21,874.77,0.19840987]
[1757364474969,0.6138179,875.2,874.77,0.19840987]
[1757364475168,0.6138179,875.19,874.77,0.19840987]
[1757364475472,0.6138179,875.18,874.77,0.19840987]
[1757364475672,0.6138179,875.17,874.77,0.19840987]
[1757364475870,0.6138179,875.16,874.77,0.19840987]
[1757364476069,0.6138179,875.15,874.77,0.19840987]
[1757364476269,0.6138179,875.14,874.77,0.19840987]
[1757364476473,0.6138179,875.13,874.77,0.19840987]
[1757364476671,1.53139727,875.42,874.77,0.19840987]
[1757364476672,0.6138179,875.12,874.77,0.19840987]
[1757364476869,0.6138179,875.11,874.77,0.19840987]
[1757364477068,0.6138179,875.1,874.77,0.19840987]
[1757364477271,0.6138179,875.09,874.77,0.19840987]
[1757364477471,0.6138179,875.08,874.77,0.19840987]
[1757364477674,0.6138179,875.07,874.77,0.19840987]
[1757364477873,0.6138179,875.06,874.77,0.19840987]
[1757364478076,1.53139727,875.41,874.77,0.19840987]
[1757364478279,0.61396251,875.4,874.77,0.19840987]
[1757364478478,0.61396251,875.39,874.77,0.19840987]
[1757364478678,1.53139727,875.34,874.77,0.19840987]
[1757364478974,0.61396251,875.33,874.77,0.19840987]
[1757364479178,0.61396251,875.32,874.77,0.19840987]
[1757364479373,0.61396251,875.31,874.77,0.19840987]
[1757364479578,0.61396251,875.3,874.77,0.19840987]
[1757364479778,0.61396251,875.29,874.77,0.19840987]
[1757364480079,0.61396251,875.28,874.77,0.19840987]
[1757364480275,0.61396251,875.27,874.77,0.19840987]
[1757364480574,1.53139727,875.25,874.77,0.19840987]
[1757364480875,0.61396251,875.24,874.77,0.19840987]
[1757364481076,0.61396251,875.23,874.77,0.19840987]
[1757364481275,0.61396251,875.22,874.77,0.19840987]
[1757364481480,0.61396251,875.21,874.77,0.19840987]
[1757364481674,0.61396251,875.2,874.77,0.19840987]
[1757364481880,0.61396251,875.19,874.77,0.19840987]
[1757364482179,0.61396251,875.18,874.77,0.19840987]
[1757364482376,0.61396251,875.17,874.77,0.19840987]
[1757364482580,0.61396251,875.16,874.77,0.19840987]
[1757364482775,0.61396251,875.15,874.77,0.19840987]
[1757364483076,0.61396251,875.14,874.77,0.19840987]
[1757364483275,0.61396251,875.13,874.77,0.19840987]
[1757364483480,0.61396251,875.12,874.77,0.19840987]
[1757364483679,0.61396251,875.11,874.77,0.19840987]
[1757364483876,0.61396251,875.1,874.77,0.19840987]
[1757364484177,0.61396251,875.09,874.77,0.19840987]
[1757364484377,0.61396251,875.08,874.77,0.19840987]
[1757364484578,0.61396251,875.07,874.77,0.19840987]
[1757364484778,0.61396251,875.06,874.77,0.19840987]
[1757364484978,1.53139727,875.27,874.77,0.19840987]
[1757364485180,0.61465338,875.26,874.77,0.19840987]
[1757364485380,0.61465338,875.25,874.77,0.19840987]
[1757364485578,0.61465338,875.24,874.77,0.19840987]
[1757364485780,0.61465338,875.23,874.77,0.19840987]
[1757364486083,0.61465338,875.22,874.77,0.19840987]
[1757364486280,0.61465338,875.21,874.77,0.19840987]
[1757364486579,0.61465338,875.2,874.77,0.19840987]
[1757364486779,0.61465338,875.19,874.77,0.19840987]
[1757364486983,0.61465338,875.18,874.77,0.19840987]
[1757364487282,0.61465338,875.17,874.77,0.19840987]
[1757364487482,0.61465338,875.16,874.77,0.19840987]
[1757364487681,0.61465338,875.15,874.77,0.19840987]
[1757364487884,0.61465338,875.14,874.77,0.19840987]
[1757364488183,0.61465338,875.13,874.77,0.19840987]
[1757364488385,0.61465338,875.12,874.77,0.19840987]
[1757364488584,1.53139727,875.2,874.77,0.19840987]
[1757364488585,0.61465338,875.11,874.77,0.19840987]
[1757364488785,0.61465338,875.1,874.77,0.19840987]
[1757364489082,0.55318805,875.09,874.77,0.19840987]
[1757364489382,1.53139727,875.2,874.77,0.19840987]
[1757364490587,1.53139727,875.49,874.77,0.19840987]
[1757364490783,1.53139727,875.5,874.77,0.19840987]
[1757364492288,1.53139727,875.49,874.77,0.19840987]
[1757364493088,1.53139727,875.48,874.77,0.19840987]
[1757364493287,1.53139727,875.47,874.77,0.19840987]
[1757364494289,1.53139727,875.46,874.77,0.19840987]
[1757364495386,1.53139727,875.45,874.77,0.19840987]
[1757364496390,1.53139727,875.44,874.77,0.19840987]
[1757364497390,1.53139727,875.43,874.77,0.19840987]
[1757364498287,1.53139727,875.42,874.77,0.19840987]
[1757364498487,1.53139727,875.43,874.77,0.19840987]
[1757364499290,1.53139727,875.41,874.77,0.19840987]
[1757364500496,1.53139727,875.17,874.77,0.19840987]
[1757364500993,1.37825755,875.08,874.77,0.19840987]
[1757364501196,0.61616711,875.07,874.77,0.19840987]
[1757364501494,0.61616711,875.06,874.77,0.19840987]
[1757364501793,2.56196976,875.84,874.77,0.19840987]
[1757364501993,0.61450604,875.83,874.77,0.19840987]
[1757364502196,0.61450604,875.82,874.77,0.19840987]
[1757364502395,0.61450604,875.81,874.77,0.19840987]
[1757364502691,0.61450604,875.8,874.77,0.19840987]
[1757364502895,3.5478291,876.19,874.77,0.19840987]
[1757364502896,0.61450604,875.79,874.77,0.19840987]
[1757364503096,0.61450604,875.78,874.77,0.19840987]
[1757364503295,0.61450604,875.77,874.77,0.19840987]
[1757364503496,0.61450604,875.76,874.77,0.19840987]
[1757364503697,0.61450604,875.75,874.77,0.19840987]
[1757364503998,0.61450604,875.74,874.77,0.19840987]
[1757364504193,0.61450604,875.73,874.77,0.19840987]
[1757364504393,0.61450604,875.72,874.77,0.19840987]
[1757364504693,0.61450604,875.71,874.77,0.19840987]
[1757364504994,0.61450604,875.7,874.77,0.19840987]
[1757364505192,0.61450604,875.69,874.77,0.19840987]
[1757364505494,0.61450604,875.68,874.77,0.19840987]
[1757364505694,0.61450604,875.67,874.77,0.19840987]
[1757364505997,0.61450604,875.66,874.77,0.19840987]
[1757364506198,0.61450604,875.65,874.77,0.19840987]
[1757364506398,0.61450604,875.64,874.77,0.19840987]
[1757364506694,0.61450604,875.63,874.77,0.19840987]
[1757364506898,0.61450604,875.62,874.77,0.19840987]
[1757364507097,0.61450604,875.61,874.77,0.19840987]
[1757364507293,0.61450604,875.6,874.77,0.19840987]
[1757364507494,0.61450604,875.59,874.77,0.19840987]
[1757364507694,0.61450604,875.58,874.77,0.19840987]
[1757364507899,0.61450604,875.57,874.77,0.19840987]
[1757364508098,0.61450604,875.56,874.77,0.19840987]
[1757364508296,0.61450604,875.55,874.77,0.19840987]
[1757364508495,0.61450604,875.54,874.77,0.19840987]
[1757364508700,0.61450604,875.53,874.77,0.19840987]
[1757364509000,0.61450604,875.52,874.77,0.19840987]
[1757364509300,0.61450604,875.51,874.77,0.19840987]
[1757364509497,0.61450604,875.5,874.77,0.19840987]
[1757364509697,0.61450604,875.49,874.77,0.19840987]
[1757364509896,0.61450604,875.48,874.77,0.19840987]
[1757364510200,0.61450604,875.47,874.77,0.19840987]
[1757364510496,0.61450604,875.46,874.77,0.19840987]
[1757364510697,0.61450604,875.45,874.77,0.19840987]
[1757364510896,2.56196976,876.35,874.77,0.19840987]
[1757364510897,0.61450604,875.44,874.77,0.19840987]
[1757364511100,0.61450604,875.43,874.77,0.19840987]
[1757364511300,0.61450604,875.42,874.77,0.19840987]
[1757364511497,0.61450604,875.41,874.77,0.19840987]
[1757364511801,0.61450604,875.4,874.77,0.19840987]
[1757364511999,0.61450604,875.39,874.77,0.19840987]
[1757364512198,0.61450604,875.38,874.77,0.19840987]
[1757364512398,0.61450604,875.37,874.77,0.19840987]
[1757364512597,0.61450604,875.36,874.77,0.19840987]
[1757364512800,0.61450604,875.35,874.77,0.19840987]
[1757364512998,0.61450604,875.34,874.77,0.19840987]
[1757364513198,0.61450604,875.33,874.77,0.19840987]
[1757364513399,0.61450604,875.32,874.77,0.19840987]
[1757364513597,0.61450604,875.31,874.77,0.19840987]
[1757364513802,0.61450604,875.3,874.77,0.19840987]
[1757364514003,0.61450604,875.29,874.77,0.19840987]
[1757364514302,0.61450604,875.28,874.77,0.19840987]
[1757364514499,0.55305544,875.27,874.77,0.19840987]
[1757364514699,0.55305544,875.26,874.77,0.19840987]
[1757364514899,2.56196976,875.6,874.77,0.19840987]
[1757364517099,2.56196976,875.55,874.77,0.19840987]
[1757364519502,2.56196976,875.54,874.77,0.19840987]
[1757364520106,2.56196976,875.58,874.77,0.19840987]
[1757364521302,1.53654668,875.08,874.77,0.19840987]
[1757364521505,0.91775382,875.08,874.77,0.19840987]
[1757364522607,2.56196976,875.84,874.77,0.19840987]
[1757364523204,2.56196976,875.82,874.77,0.19840987]
[1757364523604,2.56196976,875.83,874.77,0.19840987]
[1757364524710,2.56196976,875.84,874.77,0.19840987]
[1757364526510,0.62558368,875.83,874.77,0.19840987]
[1757364526710,0.62558368,875.82,874.77,0.19840987]
[1757364526910,0.62558368,875.81,874.77,0.19840987]
[1757364527205,0.62558368,875.8,874.77,0.19840987]
[1757364527410,0.62558368,875.79,874.77,0.19840987]
[1757364527609,0.62558368,875.78,874.77,0.19840987]
[1757364527805,0.62558368,875.77,874.77,0.19840987]
[1757364528003,0.62558368,875.76,873.87,1.5236796]
[1757364528208,0.62558368,875.75,874.86,0.19850494]
[1757364528407,0.62558368,875.74,873.85,1.5236796]
[1757364528707,0.62558368,875.73,874.94,0.1985072]
[1757364529006,0.62558368,875.72,873.85,1.5236796]
[1757364529208,0.62558368,875.71,875.01,0.19850834]
[1757364529404,0.62558368,875.7,875.01,0.19850834]
[1757364529609,0.62558368,875.69,873.85,1.5236796]
[1757364529808,0.62558368,875.68,875.07,0.19851003]
[1757364530110,0.62558368,875.67,873.86,1.5236796]
[1757364530309,0.62558368,875.66,875.13,0.19851117]
[1757364530512,0.62558368,875.65,873.86,1.5236796]
[1757364530708,0.62558368,875.64,873.86,1.5236796]
[1757364530913,0.62558368,875.63,873.87,1.5236796]
[1757364531107,0.62558368,875.62,873.87,1.5236796]
[1757364531308,0.62558368,875.61,873.87,1.5236796]
[1757364531509,0.62558368,875.6,873.86,1.5236796]
[1757364531708,0.62558368,875.59,873.86,1.5236796]
[1757364531910,0.62558368,875.58,873.86,1.5236796]
[1757364532108,0.62558368,875.57,873.86,1.5236796]
[1757364532312,0.62558368,875.56,873.86,1.5236796]
[1757364532614,0.62558368,875.55,873.93,1.5236796]
[1757364532809,0.62558368,875.54,873.93,1.5236796]
[1757364533113,0.62558368,875.53,873.93,1.5236796]
[1757364533310,0.62558368,875.52,873.93,1.5236796]
[1757364533510,0.62558368,875.51,873.93,1.5236796]
[1757364533714,0.62558368,875.5,874.32,0.1985157]
[1757364533909,0.62558368,875.49,874.32,0.1985157]
[1757364534114,0.62558368,875.48,874.32,0.1985157]
[1757364534319,0.56302532,875.47,874.32,0.1985157]
[1757364534519,2.56196976,875.67,874.32,0.1985157]
[1757364534819,3.5478291,875.96,874.32,0.1985157]
[1757364534820,2.56196976,875.63,874.32,0.1985157]
[1757364535217,2.56196976,875.66,874.32,0.1985157]
[1757364535619,2.56196976,875.73,874.32,0.1985157]
[1757364536120,2.56196976,875.74,874.32,0.1985157]
[1757364538318,2.56196976,875.7,874.32,0.1985157]
[1757364541420,2.56196976,875.74,874.32,0.1985157]
[1757364541724,1.5363087,875.11,874.32,0.1985157]
[1757364541920,0.93131942,875.11,874.32,0.1985157]
[1757364542922,2.56196976,875.76,874.32,0.1985157]
[1757364544024,2.56196976,875.77,874.32,0.1985157]
[1757364544522,2.56196976,875.78,874.32,0.1985157]
[1757364545120,2.56196976,875.75,874.32,0.1985157]
[1757364545524,2.56196976,875.67,874.32,0.1985157]
[1757364546221,2.56196976,875.66,874.32,0.1985157]
[1757364546426,0.61679887,875.65,874.32,0.1985157]
[1757364546626,0.61679887,875.64,874.32,0.1985157]
[1757364546824,0.61679887,875.63,874.32,0.1985157]
[1757364547123,0.61679887,875.62,874.32,0.1985157]
[1757364547423,0.61679887,875.61,874.32,0.1985157]
[1757364547621,0.61679887,875.6,874.32,0.1985157]
[1757364547826,0.61679887,875.59,874.32,0.1985157]
[1757364548024,0.61679887,875.58,874.32,0.1985157]
[1757364548225,0.61679887,875.57,874.32,0.1985157]
[1757364548427,0.61679887,875.56,874.32,0.1985157]
[1757364548624,0.61679887,875.55,874.32,0.1985157]
[1757364548828,0.61679887,875.54,874.32,0.1985157]
[1757364549029,0.61679887,875.53,874.32,0.1985157]
[1757364549226,0.61679887,875.52,874.32,0.1985157]
[1757364549425,2.56196976,876.12,874.32,0.1985157]
[1757364549426,0.61679887,875.51,874.32,0.1985157]
[1757364549730,0.61679887,875.5,874.32,0.1985157]
[1757364550028,0.61679887,875.49,874.32,0.1985157]
[1757364550227,0.61679887,875.48,874.32,0.1985157]
[1757364550428,0.61679887,875.47,874.32,0.1985157]
[1757364550728,0.61679887,875.46,874.32,0.1985157]
[1757364550929,2.56196976,876.11,874.32,0.1985157]
[1757364550930,0.61679887,875.45,874.32,0.1985157]
[1757364551227,0.61679887,875.44,874.32,0.1985157]
[1757364551429,0.61679887,875.43,874.32,0.1985157]
[1757364551630,0.61679887,875.42,874.32,0.1985157]
[1757364551830,0.61679887,875.41,874.32,0.1985157]
[1757364552126,0.61679887,875.4,874.32,0.1985157]
[1757364552426,0.55511899,875.39,874.32,0.1985157]
[1757364552731,2.56196976,875.68,874.32,0.1985157]
[1757364552926,2.56196976,875.69,874.32,0.1985157]
[1757364553831,2.56196976,875.7,874.32,0.1985157]
[1757364555535,2.56196976,875.69,874.32,0.1985157]
[1757364556029,2.56196976,875.73,874.32,0.1985157]
[1757364556532,2.56196976,875.71,874.32,0.1985157]
[1757364557630,2.56196976,875.68,874.32,0.1985157]
[1757364558230,2.56196976,875.85,874.32,0.1985157]
[1757364560234,2.56196976,875.98,874.32,0.1985157]
[1757364560831,2.56196976,875.97,874.32,0.1985157]
[1757364561935,1.53661807,875.18,874.32,0.1985157]
[1757364562436,1.53661807,875.17,874.32,0.1985157]
[1757364564332,0.61627641,875.16,874.32,0.1985157]
[1757364564635,0.55464877,875.15,874.32,0.1985157]
[1757364564835,1.53661807,875.17,874.32,0.1985157]
[1757364566434,1.53661807,875.19,874.32,0.1985157]
[1757364568140,1.53661807,875.15,874.32,0.1985157]
[1757364569841,1.53661807,875.11,874.32,0.1985157]
[1757364570537,1.38295627,875.11,874.32,0.1985157]
[1757364571442,2.56196976,875.73,874.32,0.1985157]
[1757364571742,2.56196976,875.79,874.32,0.1985157]
[1757364572744,2.56196976,875.78,874.32,0.1985157]
[1757364574746,2.56196976,875.82,874.32,0.1985157]
[1757364576446,2.56196976,875.71,874.32,0.1985157]
[1757364576646,0.61412202,875.7,874.32,0.1985157]
[1757364576941,0.61412202,875.69,874.32,0.1985157]
[1757364577146,0.61412202,875.68,874.32,0.1985157]
[1757364577446,0.61412202,875.67,874.32,0.1985157]
[1757364577646,0.61412202,875.66,874.32,0.1985157]
[1757364577848,0.61412202,875.65,874.32,0.1985157]
[1757364578046,0.61412202,875.64,874.32,0.1985157]
[1757364578249,0.61412202,875.63,874.32,0.1985157]
[1757364578444,0.61412202,875.62,874.32,0.1985157]
[1757364578648,0.61412202,875.61,874.32,0.1985157]
[1757364578944,0.61412202,875.6,874.32,0.1985157]
[1757364579149,0.61412202,875.59,874.32,0.1985157]
[1757364579350,0.61412202,875.58,874.32,0.1985157]
[1757364579543,0.61412202,875.57,874.32,0.1985157]
[1757364579744,0.61412202,875.56,874.32,0.1985157]
[1757364579948,0.61412202,875.55,874.32,0.1985157]
[1757364580146,0.61412202,875.54,874.32,0.1985157]
[1757364580345,0.55270982,875.53,874.32,0.1985157]
[1757364580546,2.56196976,875.66,874.32,0.1985157]
[1757364581547,2.56196976,875.57,874.32,0.1985157]
[1757364582046,2.56196976,875.58,874.32,0.1985157]
[1757364583056,2.56196976,875.61,874.32,0.1985157]
[1757364584656,2.56196976,876.44,874.32,0.1985157]
[1757364590556,1.53796462,875.42,874.32,0.1985157]
[1757364591363,1.53796462,875.48,874.32,0.1985157]
[1757364592265,0.61372978,875.47,874.32,0.1985157]
[1757364592464,0.61372978,875.46,874.32,0.1985157]
[1757364592665,0.61372978,875.45,874.32,0.1985157]
[1757364592963,0.61372978,875.44,874.32,0.1985157]
[1757364593161,0.61372978,875.43,874.32,0.1985157]
[1757364593368,0.61372978,875.42,874.32,0.1985157]
[1757364593663,0.61372978,875.41,874.32,0.1985157]
[1757364593866,0.61372978,875.4,874.32,0.1985157]
[1757364594069,0.61372978,875.39,874.32,0.1985157]
[1757364594368,0.61372978,875.38,874.32,0.1985157]
[1757364594668,1.53796462,875.35,874.32,0.1985157]
[1757364594863,0.61372978,875.34,874.32,0.1985157]
[1757364595066,0.61372978,875.33,874.32,0.1985157]
[1757364595264,0.61372978,875.32,874.32,0.1985157]
[1757364595465,0.61372978,875.31,874.32,0.1985157]
[1757364595664,0.61372978,875.3,874.32,0.1985157]
[1757364595864,0.61372978,875.29,874.32,0.1985157]
[1757364596065,0.61372978,875.28,874.32,0.1985157]
[1757364596264,0.61372978,875.27,874.32,0.1985157]
[1757364596468,0.61372978,875.26,874.32,0.1985157]
[1757364596765,0.61372978,875.25,874.32,0.1985157]
[1757364596965,0.61372978,875.24,874.32,0.1985157]
[1757364597164,0.61372978,875.23,874.32,0.1985157]
[1757364597365,0.61372978,875.22,874.32,0.1985157]
[1757364597564,0.61372978,875.21,874.32,0.1985157]
[1757364597766,0.61372978,875.2,874.32,0.1985157]
[1757364597965,0.61372978,875.19,874.32,0.1985157]
[1757364598171,0.61372978,875.18,874.32,0.1985157]
[1757364598372,0.61372978,875.17,874.32,0.1985157]
[1757364598570,0.61372978,875.16,874.32,0.1985157]
[1757364598769,0.61372978,875.15,874.32,0.1985157]
[1757364598973,0.61372978,875.14,874.32,0.1985157]
[1757364599173,0.61372978,875.13,874.32,0.1985157]
[1757364599470,0.61372978,875.12,874.32,0.1985157]
[1757364599770,0.61420163,875.11,874.32,0.1985157]
[1757364599971,0.61420163,875.1,874.32,0.1985157]
[1757364600183,1.53796462,875.34,874.32,0.1985157]
[1757364600470,1.53796462,875.24,874.32,0.1985157]
[1757364600670,0.61420163,875.23,874.32,0.1985157]
[1757364600876,0.61420163,875.22,874.32,0.1985157]
[1757364601070,0.61420163,875.21,874.32,0.1985157]
[1757364601271,0.61420163,875.2,874.32,0.1985157]
[1757364601470,0.61420163,875.19,874.32,0.1985157]
[1757364601771,0.61420163,875.18,874.32,0.1985157]
[1757364601971,0.61420163,875.17,874.32,0.1985157]
[1757364602174,0.61419704,875.16,874.32,0.1985157]
[1757364602373,0.61419704,875.15,874.32,0.1985157]
[1757364602574,1.53796462,875.12,874.32,0.1985157]
[1757364602778,1.53796462,875.11,874.32,0.1985157]
[1757364602976,1.10969584,875.11,874.32,0.1985157]
[1757364603681,2.56196976,875.77,874.32,0.1985157]
[1757364604679,2.56196976,875.7,874.32,0.1985157]
[1757364606381,2.56196976,875.77,874.32,0.1985157]
[1757364607784,2.56196976,875.7,874.32,0.1985157]
[1757364609485,2.56196976,875.71,874.32,0.1985157]
[1757364610581,2.56196976,875.81,874.32,0.1985157]
[1757364610883,2.56196976,875.8,874.32,0.1985157]
[1757364611390,2.56196976,875.78,874.32,0.1985157]
[1757364611990,2.56196976,875.75,874.32,0.1985157]
[1757364613097,2.56196976,875.77,874.32,0.1985157]
[1757364614195,2.56196976,875.76,874.32,0.1985157]
[1757364614596,0.62705273,875.75,874.32,0.1985157]
[1757364614799,0.62705273,875.74,874.32,0.1985157]
[1757364614999,0.62705273,875.73,874.32,0.1985157]
[1757364615196,0.62705273,875.72,874.32,0.1985157]
[1757364615499,0.62705273,875.71,874.32,0.1985157]
[1757364615701,0.62705273,875.7,874.32,0.1985157]
[1757364615997,0.62705273,875.69,874.32,0.1985157]
[1757364616194,0.62705273,875.68,874.32,0.1985157]
[1757364616398,0.62705273,875.67,874.32,0.1985157]
[1757364616597,0.62705273,875.66,874.32,0.1985157]
[1757364616796,0.62705273,875.65,874.32,0.1985157]
[1757364617099,0.62705273,875.64,874.32,0.1985157]
[1757364617298,0.62705273,875.63,874.32,0.1985157]
[1757364617594,0.62705273,875.62,874.32,0.1985157]
[1757364617800,0.62705273,875.61,874.32,0.1985157]
[1757364618006,0.62705273,875.6,874.32,0.1985157]
[1757364618204,0.62705273,875.59,874.32,0.1985157]
[1757364618404,0.62705273,875.58,874.32,0.1985157]
[1757364618607,0.62705273,875.57,874.32,0.1985157]
[1757364618807,0.62705273,875.56,874.32,0.1985157]
[1757364619007,0.62705273,875.55,874.32,0.1985157]
[1757364619209,0.62705273,875.54,874.32,0.1985157]
[1757364619406,0.62705273,875.53,874.32,0.1985157]
[1757364619706,0.62705273,875.52,874.32,0.1985157]
[1757364619909,0.62705273,875.51,874.32,0.1985157]
[1757364620110,0.62705273,875.5,874.32,0.1985157]
[1757364620308,0.62705273,875.49,874.32,0.1985157]
[1757364620507,0.62705273,875.48,874.32,0.1985157]
[1757364620711,0.62705273,875.47,874.32,0.1985157]
[1757364620905,0.62705273,875.46,874.32,0.1985157]
[1757364621110,0.62705273,875.45,874.32,0.1985157]
[1757364621411,0.62705273,875.44,874.32,0.1985157]
[1757364621611,0.62705273,875.43,874.32,0.1985157]
[1757364621814,0.62705273,875.42,874.32,0.1985157]
[1757364622013,0.62705273,875.41,874.32,0.1985157]
[1757364622310,0.62705273,875.4,874.32,0.1985157]
[1757364622609,0.62705273,875.39,874.32,0.1985157]
[1757364622817,0.62705273,875.38,874.32,0.1985157]
[1757364623116,1.53761574,875.21,874.32,0.1985157]
[1757364623312,0.62705273,875.2,874.32,0.1985157]
[1757364623513,0.62705273,875.19,874.32,0.1985157]
[1757364623713,0.62705273,875.18,874.32,0.1985157]
[1757364624017,0.62705273,875.17,874.32,0.1985157]
[1757364624215,0.62705273,875.16,874.32,0.1985157]
[1757364624415,0.62705273,875.15,874.32,0.1985157]
[1757364624614,0.62705273,875.14,874.32,0.1985157]
[1757364624814,0.62705273,875.13,874.32,0.1985157]
[1757364625018,0.62705273,875.12,874.32,0.1985157]
[1757364625214,0.62705273,875.11,874.32,0.1985157]
[1757364625518,0.62705273,875.1,874.32,0.1985157]
[1757364625818,1.53761574,875.22,874.32,0.1985157]
[1757364626018,0.62674568,875.21,874.32,0.1985157]
[1757364626219,0.62674568,875.2,874.32,0.1985157]
[1757364626419,0.62674568,875.19,874.32,0.1985157]
[1757364626618,0.62674568,875.18,874.32,0.1985157]
[1757364626917,0.62674568,875.17,874.32,0.1985157]
[1757364627115,0.62674568,875.16,874.32,0.1985157]
[1757364627313,0.62674568,875.15,874.32,0.1985157]
[1757364627517,0.62674568,875.14,874.32,0.1985157]
[1757364627716,0.62674568,875.13,874.32,0.1985157]
[1757364627916,0.62674568,875.12,874.32,0.1985157]
[1757364628120,0.62674568,875.11,874.32,0.1985157]
[1757364628416,0.62674568,875.1,874.32,0.1985157]
[1757364628620,1.53761574,875.22,874.32,0.1985157]
[1757364628821,0.62674618,875.21,874.32,0.1985157]
[1757364629021,0.62674618,875.2,874.32,0.1985157]
[1757364629216,0.62674618,875.19,874.32,0.1985157]
[1757364629421,0.62674618,875.18,874.32,0.1985157]
[1757364629621,0.62674618,875.17,874.32,0.1985157]
[1757364629818,0.62674618,875.16,874.32,0.1985157]
[1757364630016,0.62674618,875.15,874.32,0.1985157]
[1757364630221,0.62674618,875.14,874.32,0.1985157]
[1757364630515,0.62674618,875.13,874.32,0.1985157]
[1757364630718,0.62674618,875.12,874.32,0.1985157]
[1757364630922,0.62674618,875.11,874.32,0.1985157]
[1757364631121,1.53761574,875.23,874.32,0.1985157]
[1757364631319,0.62675197,875.22,874.32,0.1985157]
[1757364631618,1.53761574,875.11,874.32,0.1985157]
[1757364634531,1.53761574,875.12,874.32,0.1985157]
[1757364634732,0.62675184,875.11,874.32,0.1985157]
[1757364634926,1.53761574,875.12,874.32,0.1985157]
[1757364635131,0.62675189,875.11,874.32,0.1985157]
[1757364635329,1.53761574,875.12,874.32,0.1985157]
[1757364635528,1.33910174,875.12,873.94,1.5236796]
[1757364635731,1.33910174,875.6,873.75,1.5236796]
[1757364635931,0.62670683,875.59,873.86,1.5236796]
[1757364636132,0.62670683,875.58,873.86,1.5236796]
[1757364636332,0.62670683,875.57,873.83,1.5236796]
[1757364636534,0.62670683,875.56,873.85,1.5236796]
[1757364636831,0.62670683,875.55,873.85,1.5236796]
[1757364637028,0.62670683,875.54,873.85,1.5236796]
[1757364637229,0.62670683,875.53,873.85,1.5236796]
[1757364637435,0.62670683,875.52,873.84,1.5236796]
[1757364637631,0.62670683,875.52,872.42,3.5552524]
[1757364637632,0.62670683,875.51,873.85,1.5236796]
[1757364637831,0.62670683,875.5,873.85,1.5236796]
[1757364638034,0.62670683,875.49,873.85,1.5236796]
[1757364638230,0.62670683,875.48,873.84,1.5236796]
[1757364638429,0.62670683,875.47,873.84,1.5236796]
[1757364638629,0.62670683,875.46,874.25,0.19849928]
[1757364638832,0.62670683,875.45,874.25,0.19849928]
[1757364639032,0.62670683,875.44,874.25,0.19849928]
[1757364639231,0.62670683,875.43,874.25,0.19849928]
[1757364639432,0.62670683,875.42,874.25,0.19849928]
[1757364639735,0.62670683,875.41,874.25,0.19849928]
[1757364639939,0.62670683,875.4,874.25,0.19849928]
[1757364640235,0.62670683,875.39,874.25,0.19849928]
[1757364640432,0.62670683,875.38,874.25,0.19849928]
[1757364640632,0.62670683,875.37,874.25,0.19849928]
[1757364640837,0.62670683,875.36,874.25,0.19849928]
[1757364641033,0.62670683,875.35,874.25,0.19849928]
[1757364641238,0.62670683,875.34,874.25,0.19849928]
[1757364641439,0.62670683,875.33,874.25,0.19849928]
[1757364641639,0.62670683,875.32,874.25,0.19849928]
[1757364641836,0.62670683,875.31,874.25,0.19849928]
[1757364642034,0.62670683,875.3,874.25,0.19849928]
[1757364642341,0.62670683,875.29,874.25,0.19849928]
[1757364642539,0.62670683,875.28,874.25,0.19849928]
[1757364642739,0.62670683,875.27,874.25,0.19849928]
[1757364642936,0.62670683,875.26,874.25,0.19849928]
[1757364643136,2.56196976,876.33,874.25,0.19849928]
[1757364643338,0.62362094,876.32,874.25,0.19849928]
[1757364643539,0.62362094,876.31,874.25,0.19849928]